fUST/lending_fUST_20251125
["ID","MTS","AMOUNT","RATE_DAILY","PERIOD"]
[394883766,1764064247368,-718.55966446,6.236e-05,2]
[394883767,1764064247378,-718.55966446,6.236e-05,2]
[394883768,1764064247387,-718.55966446,6.236e-05,2]
[394883769,1764064247399,-718.55966446,6.236e-05,2]
[394883770,1764064247409,-718.55966446,6.236e-05,2]
[394883771,1764064247419,-718.55966446,6.236e-05,2]
[394883772,1764064247430,-718.55966446,6.236e-05,2]
[394883773,1764064247439,-500.0,6.237e-05,2]
[394883774,1764064247449,-300.0,6.237e-05,2]
[394883775,1764064247461,-300.0,6.237e-05,2]
[394883776,1764064247471,-300.0,6.237e-05,2]
[394883777,1764064247481,-300.0,6.237e-05,2]
[394883778,1764064247491,-1200.0,6.237e-05,2]
[394883779,1764064247501,-440.72934384,6.238e-05,2]
[394883780,1764064247510,-431.67787717,6.238e-05,2]
[394883781,1764064247520,-303.32042601,6.239e-05,2]
[394883782,1764064247529,-1000.0,6.239e-05,2]
[394883783,1764064247538,-1000.0,6.239e-05,2]
[394883784,1764064247547,-875.36936395,6.239e-05,2]
[394883785,1764064247556,-1250.47984814,6.239e-05,2]
[394883786,1764064247574,-21374.66084263,6.239e-05,2]
[394883787,1764064250109,1512.0134264,6.173e-05,2]
[394883788,1764064265220,223.02823501,6.177e-05,2]
[394883789,1764064265282,223.02823501,6.139e-05,2]
[394883790,1764064266635,-300.0,6.238e-05,2]
[394883791,1764064266662,-126.35690897,6.239e-05,2]
[394883794,1764064273015,60692.24780047,6.177e-05,2]
[394883795,1764064281252,17009.09962475,6.177e-05,2]
[394883796,1764064282647,-210.04305395,6.239e-05,2]
[394883797,1764064284368,-347.89351051,6.239e-05,2]
[394883798,1764064285941,-199.0885471,6.239e-05,2]
[394883799,1764064287428,-272.22970046,6.239e-05,2]
[394883800,1764064290113,-215.15572609,6.239e-05,2]
[394883801,1764064292044,-403.67624345,6.239e-05,2]
[394883802,1764064295821,-183.34281655,6.239e-05,2]
[394883803,1764064298136,-171.08889022,6.239e-05,2]
[394883804,1764064301509,-243.88188664,6.239e-05,2]
[394883805,1764064302934,259.843,6.114e-05,2]
[394883806,1764064303056,186.09547447,6.114e-05,2]
[394883807,1764064303549,414.0,6.177e-05,2]
[394883808,1764064304381,-153.59194599,6.239e-05,2]
[394883809,1764064307619,-360.97750021,6.239e-05,2]
[394883810,1764064309403,-153.98832922,6.239e-05,2]
[394883811,1764064312089,-270.6481367,6.239e-05,2]
[394883812,1764064313852,-227.84698348,6.239e-05,2]
[394883813,1764064315420,-578.69302043,6.239e-05,2]
[394883814,1764064318180,-299.96698545,6.239e-05,2]
[394883815,1764064319747,-289.95694602,6.239e-05,2]
[394883816,1764064322415,-250.86094477,6.239e-05,2]
[394883817,1764064324662,-258.95475805,6.238e-05,2]
[394883818,1764064326219,159.74384881,6.082e-05,2]
[394883819,1764064327217,-41.04524195,6.238e-05,2]
[394883820,1764064327399,-114.72674815,6.239e-05,2]
[394883821,1764064329536,-303.75263424,6.239e-05,2]
[394883822,1764064331086,-376.85087449,6.239e-05,2]
[394883823,1764064334250,-331.35058595,6.239e-05,2]
[394883824,1764064337127,-300.0,6.239e-05,2]
[394883825,1764064339450,-167.41838742,6.239e-05,2]
[394883826,1764064342159,-176.22626387,6.239e-05,2]
[394883827,1764064351505,-300.0,6.236e-05,2]
[394883828,1764064353605,-200.0,6.236e-05,2]
[394883829,1764064353633,-210.88892161,6.236e-05,2]
[394883830,1764064355252,-188.92525109,6.236e-05,2]
[394883831,1764064366072,-217.02223763,6.236e-05,2]
[394883832,1764064367700,-223.03852216,6.236e-05,2]
[394883833,1764064367728,-220.49547666,6.236e-05,2]
[394883834,1764064369242,-247.37443072,6.236e-05,2]
[394883835,1764064372462,-219.09034725,6.235e-05,2]
[394883836,1764064374594,-188.92525109,6.235e-05,2]
[394883837,1764064377180,-218.49211706,6.235e-05,2]
[394883838,1764064380320,-270.94374857,6.235e-05,2]
[394883839,1764064395942,-302.54853603,6.235e-05,2]
[394883840,1764064395965,-87.42640354,6.235e-05,2]
[394883841,1764064397484,-212.57359646,6.235e-05,2]
[394883842,1764064397511,-287.42640354,6.236e-05,2]
[394883843,1764064398901,-84.57862157,6.236e-05,2]
[394883844,1764064398924,-217.43113029,6.236e-05,2]
[394883846,1764064403141,-124.46964109,6.236e-05,2]
[394883847,1764064403170,-157.78862659,6.236e-05,2]
[394883848,1764064404906,1021.02017602,6.174e-05,2]
[394883849,1764064420222,152.1559917,6.174e-05,2]
[394883850,1764064428147,159.9115209,6.174e-05,2]
[394883852,1764064479908,-300.0,6.235e-05,2]
[394883853,1764064479930,-500.0,6.235e-05,2]
[394883854,1764064479953,-266.47655193,6.235e-05,2]
[394883855,1764064479976,-405.2545638,6.235e-05,2]
[394883856,1764064479997,-500.0,6.235e-05,2]
[394883857,1764064480021,-500.0,6.235e-05,2]
[394883858,1764064480042,-500.0,6.235e-05,2]
[394883859,1764064480070,-500.0,6.235e-05,2]
[394883860,1764064480097,-500.0,6.235e-05,2]
[394883861,1764064480119,-257.71069424,6.235e-05,2]
[394883862,1764064480140,-500.0,6.235e-05,2]
[394883863,1764064480165,-500.0,6.235e-05,2]
[394883864,1764064480187,-160.84143513,6.235e-05,2]
[394883865,1764064480211,-500.0,6.235e-05,2]
[394883866,1764064480236,-500.0,6.235e-05,2]
[394883867,1764064480262,-500.0,6.235e-05,2]
[394883868,1764064480287,-500.0,6.235e-05,2]
[394883869,1764064480312,-500.0,6.235e-05,2]
[394883870,1764064480337,-500.0,6.235e-05,2]
[394883871,1764064480362,-500.0,6.235e-05,2]
[394883872,1764064480386,-500.0,6.235e-05,2]
[394883873,1764064480411,-500.0,6.235e-05,2]
[394883874,1764064480438,-500.0,6.235e-05,2]
[394883875,1764064480465,-541.04220913,6.235e-05,2]
[394883876,1764064480493,-500.0,6.235e-05,2]
[394883877,1764064480522,-500.0,6.235e-05,2]
[394883878,1764064480551,-500.0,6.235e-05,2]
[394883879,1764064480581,-500.0,6.235e-05,2]
[394883880,1764064480607,-500.0,6.235e-05,2]
[394883881,1764064480634,-500.0,6.235e-05,2]
[394883882,1764064480658,-500.0,6.235e-05,2]
[394883883,1764064480687,-500.0,6.235e-05,2]
[394883884,1764064480713,-500.0,6.235e-05,2]
[394883885,1764064480740,-500.0,6.235e-05,2]
[394883886,1764064480767,-500.0,6.235e-05,2]
[394883887,1764064480790,-500.0,6.237e-05,2]
[394883888,1764064480813,-500.0,6.237e-05,2]
[394883889,1764064480836,-559.37651398,6.237e-05,2]
[394883890,1764064480857,-500.0,6.237e-05,2]
[394883891,1764064480882,-509177.7568706,6.239e-05,2]
[394883892,1764064621010,-181.76015069,6.049e-05,2]
[394883893,1764064623832,-183.6345398,6.049e-05,2]
[394883894,1764064625881,16466.0,6e-05,2]
[394883895,1764064626573,-48.60530951,6.049e-05,2]
[394883896,1764064626596,-116.26788968,6.08e-05,2]
[394883897,1764064629424,-151.65450905,6.08e-05,2]
[394883898,1764064631658,-59.66904352,6.08e-05,2]
[394883899,1764064631681,-178.29297191,6.11e-05,2]
[394883900,1764064633712,-175.26723728,6.019e-05,2]
[394883901,1764064710984,-36.05631529,6.019e-05,2]
[394883902,1764064711008,-201.52762255,6.11e-05,2]
[394883903,1764064740939,-285.41246627,6.073e-05,2]
[394883904,1764064815983,-214.58753373,6.012e-05,2]
[394883905,1764064816005,-85.41246627,6.073e-05,2]
[394883906,1764064817597,-129.17506746,6.073e-05,2]
[394883907,1764064817619,-62.09790499,6.113e-05,2]
[394883908,1764064820203,-166.44008619,6.113e-05,2]
[394883909,1764064823046,-271.46200882,6.113e-05,2]
[394883910,1764064823072,-226.47789184,6.113e-05,2]
[394883911,1764064824556,-175.41883715,6.113e-05,2]
[394883912,1764064830966,-200.19822835,6.051e-05,2]
[394883913,1764064833512,432.45238697,5.99e-05,2]
[394883914,1764064833968,-320.05666794,6.051e-05,2]
[394883915,1764064861905,-207.22646302,6.051e-05,2]
[394883916,1764064864015,-43.98064951,6.051e-05,2]
[394883917,1764064864036,-98.10327101,6.113e-05,2]
[394883918,1764064864058,-64.59848082,6.132e-05,2]
[394883919,1764064865506,-235.40151918,6.132e-05,2]
[394883920,1764064865528,-57.3720178,6.133e-05,2]
[394883921,1764064867549,-185.9360197,6.133e-05,2]
[394883923,1764064981219,-367.38308519,6.072e-05,2]
[394883924,1764064984325,-132.27036659,6.072e-05,2]
[394883925,1764064984348,-114.44836468,6.103e-05,2]
[394883926,1764064985974,-212.75417746,6.103e-05,2]
[394883927,1764064985997,-16.32714136,6.113e-05,2]
[394883928,1764064990229,-214.82041278,6.113e-05,2]
[394883929,1764065115961,-164.82365824,6.113e-05,2]
[394883930,1764065168908,-1200.0,6.129e-05,2]
[394883931,1764065184461,-300.0,6.13e-05,2]
[394883932,1764065184488,-300.0,6.13e-05,2]
[394883933,1764065184519,-300.0,6.13e-05,2]
[394883934,1764065184548,-300.0,6.13e-05,2]
[394883935,1764065190949,330.10905436,6.07e-05,2]
[394883936,1764065199149,2242.61375728,6.069e-05,2]
[394883937,1764065200049,-500.0,6.13e-05,2]
[394883938,1764065200079,-441.56355979,6.13e-05,2]
[394883939,1764065200108,-500.0,6.13e-05,2]
[394883940,1764065200137,-500.0,6.13e-05,2]
[394883941,1764065200165,-534.13434403,6.13e-05,2]
[394883942,1764065200196,-215.75298366,6.13e-05,2]
[394883943,1764065200229,-500.0,6.13e-05,2]
[394883944,1764065200258,-500.0,6.13e-05,2]
[394883945,1764065200291,-500.0,6.13e-05,2]
[394883946,1764065200492,-500.0,6.13e-05,2]
[394883947,1764065200528,-117.10822504,6.13e-05,2]
[394883948,1764065200715,-382.89177496,6.13e-05,2]
[394883949,1764065200748,-500.0,6.13e-05,2]
[394883950,1764065200780,-500.0,6.13e-05,2]
[394883951,1764065200809,-500.0,6.13e-05,2]
[394883952,1764065200839,-500.0,6.13e-05,2]
[394883953,1764065200874,-500.0,6.13e-05,2]
[394883954,1764065200906,-500.0,6.13e-05,2]
[394883955,1764065200939,-500.0,6.13e-05,2]
[394883956,1764065200975,-500.0,6.13e-05,2]
[394883957,1764065201009,-500.0,6.13e-05,2]
[394883958,1764065201162,-500.0,6.13e-05,2]
[394883959,1764065201197,-500.0,6.13e-05,2]
[394883960,1764065201230,-500.0,6.13e-05,2]
[394883961,1764065201262,-500.0,6.13e-05,2]
[394883962,1764065201295,-500.0,6.13e-05,2]
[394883963,1764065201328,-500.0,6.13e-05,2]
[394883964,1764065201360,-500.0,6.13e-05,2]
[394883965,1764065201392,-500.0,6.13e-05,2]
[394883966,1764065201423,-500.0,6.13e-05,2]
[394883967,1764065201455,-500.0,6.13e-05,2]
[394883968,1764065201507,-500.0,6.13e-05,2]
[394883969,1764065201541,-500.0,6.13e-05,2]
[394883970,1764065201575,-500.0,6.13e-05,2]
[394883971,1764065201608,-500.0,6.13e-05,2]
[394883972,1764065201641,-500.0,6.13e-05,2]
[394883973,1764065201673,-500.0,6.13e-05,2]
[394883974,1764065201705,-500.0,6.13e-05,2]
[394883975,1764065201738,-500.0,6.13e-05,2]
[394883976,1764065201770,-500.0,6.13e-05,2]
[394883977,1764065201802,-500.0,6.13e-05,2]
[394883978,1764065201892,-500.0,6.13e-05,2]
[394883979,1764065201928,-500.0,6.13e-05,2]
[394883980,1764065201963,-500.0,6.13e-05,2]
[394883981,1764065201998,-500.0,6.13e-05,2]
[394883982,1764065202033,-500.0,6.13e-05,2]
[394883983,1764065202070,-500.0,6.13e-05,2]
[394883984,1764065202106,-500.0,6.13e-05,2]
[394883985,1764065202140,-500.0,6.13e-05,2]
[394883986,1764065202175,-500.0,6.13e-05,2]
[394883987,1764065202208,-500.0,6.13e-05,2]
[394883988,1764065203525,-500.0,6.13e-05,2]
[394883989,1764065203560,-500.0,6.13e-05,2]
[394883990,1764065203594,-500.0,6.13e-05,2]
[394883991,1764065203626,-500.0,6.13e-05,2]
[394883992,1764065203659,-500.0,6.13e-05,2]
[394883993,1764065203693,-500.0,6.13e-05,2]
[394883994,1764065203726,-500.0,6.13e-05,2]
[394883995,1764065203759,-500.0,6.13e-05,2]
[394883996,1764065203792,-500.0,6.13e-05,2]
[394883997,1764065204935,500.0,6.13e-05,2]
[394883998,1764065204979,500.0,6.13e-05,2]
[394883999,1764065205064,0.01,6.13e-05,2]
[394884000,1764065205089,499.99,6.13e-05,2]
[394884001,1764065205134,500.0,6.13e-05,2]
[394884002,1764065205171,500.0,6.13e-05,2]
[394884003,1764065205212,500.0,6.13e-05,2]
[394884004,1764065205243,500.0,6.13e-05,2]
[394884005,1764065205273,500.0,6.13e-05,2]
[394884006,1764065205307,500.0,6.13e-05,2]
[394884007,1764065205338,500.0,6.13e-05,2]
[394884008,1764065205371,500.0,6.13e-05,2]
[394884009,1764065205400,500.0,6.13e-05,2]
[394884010,1764065205448,500.0,6.13e-05,2]
[394884011,1764065205479,500.0,6.13e-05,2]
[394884012,1764065205509,500.0,6.13e-05,2]
[394884013,1764065205547,500.0,6.13e-05,2]
[394884014,1764065205584,500.0,6.13e-05,2]
[394884015,1764065205614,500.0,6.13e-05,2]
[394884016,1764065205644,500.0,6.13e-05,2]
[394884017,1764065205687,500.0,6.13e-05,2]
[394884018,1764065205730,484.90113558,6.13e-05,2]
[394884019,1764065205942,500.0,6.13e-05,2]
[394884020,1764065222180,500.0,6.07e-05,2]
[394884021,1764065222728,300.0,6.13e-05,2]
[394884022,1764065234737,2944.72437405,6.13e-05,2]
[394884023,1764065234805,2944.72437405,6.13e-05,2]
[394884024,1764065234852,2944.72437405,6.13e-05,2]
[394884025,1764065234908,365.83687785,6.13e-05,2]
[394884026,1764065234940,2578.8874962,6.13e-05,2]
[394884027,1764065235009,2944.72437405,6.13e-05,2]
[394884028,1764065235071,2944.72437405,6.13e-05,2]
[394884029,1764065235116,1531.6737557,6.13e-05,2]
[394884030,1764065245290,9158.86573185,6.069e-05,2]
[394884031,1764065261285,324.81875072,6.069e-05,2]
[394884032,1764065269791,266.47375807,6.069e-05,2]
[394884033,1764065360011,-1200.0,6.129e-05,2]
[394884034,1764065360034,-300.0,6.129e-05,2]
[394884035,1764065360056,-525.4032546,6.13e-05,2]
[394884036,1764065360077,-500.0,6.13e-05,2]
[394884037,1764065360100,-500.0,6.13e-05,2]
[394884038,1764065360121,-500.0,6.13e-05,2]
[394884039,1764065360141,-163.97786068,6.13e-05,2]
[394884040,1764065360162,-500.0,6.13e-05,2]
[394884041,1764065360183,-500.0,6.13e-05,2]
[394884042,1764065360202,-500.0,6.13e-05,2]
[394884043,1764065360223,-283.1931736,6.13e-05,2]
[394884044,1764065360241,-335.15583765,6.13e-05,2]
[394884045,1764065360260,-321.36868629,6.131e-05,2]
[394884046,1764065360282,-250.0,6.131e-05,2]
[394884047,1764065360303,-250.0,6.131e-05,2]
[394884048,1764065360324,-250.0,6.131e-05,2]
[394884049,1764065360343,-250.0,6.131e-05,2]
[394884050,1764065360363,-250.0,6.131e-05,2]
[394884051,1764065360382,-250.0,6.131e-05,2]
[394884052,1764065360403,-250.0,6.131e-05,2]
[394884053,1764065360423,-250.0,6.131e-05,2]
[394884054,1764065360444,-250.0,6.131e-05,2]
[394884055,1764065360463,-333.3321944,6.131e-05,2]
[394884056,1764065360485,-250.0,6.131e-05,2]
[394884057,1764065360506,-250.0,6.131e-05,2]
[394884058,1764065360526,-500.0,6.131e-05,2]
[394884059,1764065360545,-250.0,6.131e-05,2]
[394884060,1764065360564,-500.0,6.131e-05,2]
[394884061,1764065360584,-366.56085497,6.131e-05,2]
[394884062,1764065360603,-500.0,6.131e-05,2]
[394884063,1764065360621,-500.0,6.131e-05,2]
[394884064,1764065360640,-500.0,6.131e-05,2]
[394884065,1764065360660,-500.0,6.131e-05,2]
[394884066,1764065360679,-500.0,6.131e-05,2]
[394884067,1764065360697,-500.0,6.131e-05,2]
[394884068,1764065360716,-500.0,6.131e-05,2]
[394884069,1764065360736,-500.0,6.131e-05,2]
[394884070,1764065360754,-500.0,6.131e-05,2]
[394884071,1764065360773,-515.31083876,6.131e-05,2]
[394884072,1764065366290,-509.09449185,6.134e-05,2]
[394884073,1764065366312,-500.0,6.134e-05,2]
[394884074,1764065366331,-241.636872,6.135e-05,2]
[394884075,1764065366349,-27.28372709,6.135e-05,2]
[394884076,1764065402678,300.0,6.134e-05,2]
[394884077,1764065402746,300.0,6.134e-05,2]
[394884078,1764065404878,1200.0,6.134e-05,2]
[394884109,1764065432359,-319863.18036235,6.135e-05,2]
[394884110,1764065432371,-1389.63512518,6.135e-05,2]
[394884123,1764065441178,-3e-08,6.134e-05,2]
[394884124,1764065442559,-322.80178946,6.134e-05,2]
[394884133,1764065444352,-177.19821051,6.134e-05,2]
[394884134,1764065444362,-500.0,6.134e-05,2]
[394884135,1764065444372,-648.26226252,6.134e-05,2]
[394884136,1764065444381,-3364.62051208,6.135e-05,2]
[394884137,1764065444406,-351.14,6.135e-05,2]
[394884138,1764065444418,-352.01176394,6.135e-05,2]
[394884166,1764065445873,-200.35358327,6.135e-05,2]
[394884176,1764065445968,-26000.0,6.135e-05,2]
[394884177,1764065458766,150.0,6.074e-05,2]
[394884178,1764065462600,300.0,6.134e-05,2]
[394884179,1764065502929,277.334,6.012e-05,2]
[394884180,1764065523049,300.0,6.134e-05,2]
[394884181,1764065534582,774.21113858,6.134e-05,2]
[394884182,1764065565969,-322.31963266,6.134e-05,2]
[394884183,1764065570096,-177.68036734,6.134e-05,2]
[394884184,1764065570119,-100.71002456,6.134e-05,2]
[394884185,1764065571348,1154.0,6.134e-05,2]
[394884186,1764065574872,454.22360211,6.073e-05,2]
[394884187,1764065583431,300.0,6.134e-05,2]
[394884188,1764065642822,300.0,6.134e-05,2]
[394884189,1764065685527,20145.92855836,6.035e-05,2]
[394884208,1764065851000,-300.0,6.033e-05,2]
[394884209,1764065851024,-149.85295505,6.034e-05,2]
[394884210,1764065853680,-350.14704495,6.034e-05,2]
[394884211,1764065853707,-72.66909448,6.034e-05,2]
[394884212,1764065856639,-300.0,6.034e-05,2]
[394884213,1764065858684,-166.18416373,6.034e-05,2]
[394884214,1764065860339,-282.91524613,6.034e-05,2]
[394884215,1764065862098,-290.6689341,6.034e-05,2]
[394884216,1764065863720,-87.56256156,6.034e-05,2]
[394884217,1764065863740,-232.76820118,6.034e-05,2]
[394884218,1764065865273,-179.66923726,6.034e-05,2]
[394884219,1764065867835,-87.56256156,6.034e-05,2]
[394884220,1764065867856,-206.3661443,6.034e-05,2]
[394884221,1764065867882,-17.14282649,6.034e-05,2]
[394884222,1764065870408,-270.19053779,6.034e-05,2]
[394884223,1764065874122,-243.66301174,6.034e-05,2]
[394884225,1764065877805,-424.17626708,6.034e-05,2]
[394884226,1764065880002,282.91524613,5.974e-05,2]
[394884227,1764065880305,-75.82373292,6.034e-05,2]
[394884228,1764065880332,-106.47721321,6.034e-05,2]
[394884229,1764065882415,-148.59661022,6.034e-05,2]
[394884230,1764065882440,-171.16426568,6.034e-05,2]
[394884231,1764065884511,-180.2391241,6.033e-05,2]
[394884232,1764065888320,-119.7608759,6.033e-05,2]
[394884233,1764065888342,-56.25346611,6.034e-05,2]
[394884234,1764065890764,-368.22040299,6.034e-05,2]
[394884235,1764065893123,-166.73903918,6.034e-05,2]
[394884236,1764065895545,-157.81459599,6.034e-05,2]
[394884237,1764065899706,-295.08493639,6.034e-05,2]
[394884238,1764065903338,-180.97702297,6.034e-05,2]
[394884239,1764065907802,-70.26245548,6.034e-05,2]
[394884240,1764065907824,-138.61384758,6.034e-05,2]
[394884241,1764065909546,-187.08959843,6.034e-05,2]
[394884242,1764065909574,-90.85173561,6.034e-05,2]
[394884243,1764065916029,-179.28524712,6.033e-05,2]
[394884244,1764065918365,-315.17105389,6.033e-05,2]
[394884245,1764065918394,-19.17980533,6.033e-05,2]
[394884246,1764065921266,-151.8744075,6.033e-05,2]
[394884247,1764065925312,-12.08603856,6.033e-05,2]
[394884248,1764065925340,-271.48096758,6.033e-05,2]
[394884249,1764065929508,-199.11379493,6.033e-05,2]
[394884250,1764065933051,-29.40523749,6.033e-05,2]
[394884251,1764065933076,-217.13285445,6.033e-05,2]
[394884252,1764065936504,-167.35545874,6.033e-05,2]
[394884253,1764065938681,-115.51168681,6.033e-05,2]
[394884254,1764065938707,-50.05439265,6.033e-05,2]
[394884255,1764065940497,-270.78110699,6.033e-05,2]
[394884256,1764065942337,-179.16450036,6.033e-05,2]
[394884257,1764065942358,-3.49982209,6.033e-05,2]
[394884258,1764065944839,-176.23278718,6.032e-05,2]
[394884259,1764065947910,-123.76721282,6.032e-05,2]
[394884260,1764065947930,-156.4579572,6.033e-05,2]
[394884261,1764065950944,-162.09581647,6.033e-05,2]
[394884262,1764065953991,-75.79223399,6.033e-05,2]
[394884263,1764065954018,-239.15863443,6.033e-05,2]
[394884264,1764065958062,-151.83330716,6.033e-05,2]
[394884265,1764065960080,-109.00805841,6.033e-05,2]
[394884266,1764065960117,-48.184956,6.033e-05,2]
[394884267,1764065962302,-434.02870565,6.033e-05,2]
[394884268,1764065966011,-17.78633835,6.033e-05,2]
[394884269,1764065966044,-272.82646369,6.033e-05,2]
[394884270,1764065968161,-227.17353631,6.033e-05,2]
[394884271,1764065968201,-10.66284551,6.033e-05,2]
[394884272,1764065971118,-347.57362615,6.033e-05,2]
[394884273,1764065974668,-141.76352834,6.033e-05,2]
[394884274,1764065974693,-158.23647166,6.033e-05,2]
[394884275,1764065976852,-188.42004092,6.033e-05,2]
[394884276,1764065980580,-153.34348742,6.033e-05,2]
[394884277,1764065980605,-146.65651258,6.033e-05,2]
[394884278,1764065983899,-178.31885126,6.033e-05,2]
[394884279,1764065992504,-175.02463616,6.033e-05,2]
[394884280,1764065992533,-27.51860582,6.033e-05,2]
[394884281,1764065994827,-265.59800481,6.033e-05,2]
[394884282,1764065998232,-206.88338937,6.033e-05,2]
[394884283,1764065998259,-21.74615164,6.033e-05,2]
[394884284,1764066001211,-248.97491769,6.033e-05,2]
[394884285,1764066002909,-197.12702763,6.032e-05,2]
[394884286,1764066017944,-102.87297237,6.032e-05,2]
[394884287,1764066017966,-171.06172039,6.032e-05,2]
[394884288,1764066021377,-128.93827961,6.032e-05,2]
[394884289,1764066021398,-144.09568023,6.032e-05,2]
[394884290,1764066023471,-155.90431977,6.032e-05,2]
[394884291,1764066023497,-6.04450371,6.032e-05,2]
[394884292,1764066027480,-329.79609818,6.032e-05,2]
[394884293,1764066032368,-196.43071042,6.032e-05,2]
[394884294,1764066034493,-216.74451271,6.032e-05,2]
[394884295,1764066039597,-377.39408243,6.032e-05,2]
[394884296,1764066041201,-73.59009255,6.032e-05,2]
[394884297,1764066041223,-195.54614795,6.032e-05,2]
[394884298,1764066044643,-257.21626237,6.032e-05,2]
[394884299,1764066047779,-47.23758968,6.032e-05,2]
[394884300,1764066047802,-149.19312074,6.032e-05,2]
[394884301,1764066050138,-178.74533872,6.032e-05,2]
[394884302,1764066050167,-90.22337185,6.032e-05,2]
[394884303,1764066054324,-198.68356525,6.032e-05,2]
[394884304,1764066057135,-154.41301712,6.032e-05,2]
[394884305,1764066059319,-173.77971707,6.032e-05,2]
[394884306,1764066063528,-324.9763518,6.032e-05,2]
[394884310,1764066267222,-368.0,6.03e-05,2]
[394884311,1764066267251,-300.0,6.03e-05,2]
[394884312,1764066282723,-500.0,6.03e-05,2]
[394884313,1764066282752,-204.37671426,6.03e-05,2]
[394884314,1764066282785,-500.0,6.03e-05,2]
[394884315,1764066282817,-500.0,6.03e-05,2]
[394884316,1764066282848,-500.0,6.03e-05,2]
[394884317,1764066282879,-500.0,6.03e-05,2]
[394884318,1764066282915,-500.0,6.03e-05,2]
[394884319,1764066282946,-500.0,6.03e-05,2]
[394884320,1764066282979,-500.0,6.03e-05,2]
[394884321,1764066283011,-500.0,6.03e-05,2]
[394884322,1764066283044,-91.25657148,6.03e-05,2]
[394884323,1764066283182,-408.74342852,6.03e-05,2]
[394884324,1764066283217,-500.0,6.03e-05,2]
[394884325,1764066283251,-500.0,6.03e-05,2]
[394884326,1764066283290,-500.0,6.03e-05,2]
[394884327,1764066283322,-500.0,6.03e-05,2]
[394884328,1764066283356,-500.0,6.03e-05,2]
[394884329,1764066283390,-500.0,6.03e-05,2]
[394884330,1764066283422,-500.0,6.03e-05,2]
[394884331,1764066283455,-500.0,6.03e-05,2]
[394884332,1764066283489,-500.0,6.03e-05,2]
[394884333,1764066283647,-500.0,6.03e-05,2]
[394884334,1764066283679,-500.0,6.03e-05,2]
[394884335,1764066283711,-500.0,6.03e-05,2]
[394884336,1764066283741,-500.0,6.03e-05,2]
[394884337,1764066283772,-500.0,6.03e-05,2]
[394884338,1764066283801,-500.0,6.03e-05,2]
[394884339,1764066283831,-500.0,6.03e-05,2]
[394884340,1764066283862,-500.0,6.03e-05,2]
[394884341,1764066283894,-500.0,6.03e-05,2]
[394884342,1764066283926,-500.0,6.03e-05,2]
[394884343,1764066283988,-500.0,6.03e-05,2]
[394884344,1764066284020,-500.0,6.03e-05,2]
[394884345,1764066284054,-500.0,6.03e-05,2]
[394884346,1764066284087,-500.0,6.03e-05,2]
[394884347,1764066284120,-500.0,6.03e-05,2]
[394884348,1764066284153,-500.0,6.03e-05,2]
[394884349,1764066284186,-500.0,6.03e-05,2]
[394884350,1764066284218,-500.0,6.03e-05,2]
[394884351,1764066284250,-500.0,6.03e-05,2]
[394884352,1764066284284,-500.0,6.03e-05,2]
[394884353,1764066284580,-500.0,6.03e-05,2]
[394884354,1764066284614,-456.57521651,6.03e-05,2]
[394884355,1764066284647,-500.0,6.03e-05,2]
[394884356,1764066284679,-500.0,6.03e-05,2]
[394884357,1764066284710,-500.0,6.03e-05,2]
[394884358,1764066284742,-500.0,6.03e-05,2]
[394884359,1764066284773,-500.0,6.03e-05,2]
[394884360,1764066284803,-500.0,6.03e-05,2]
[394884361,1764066284833,-500.0,6.03e-05,2]
[394884362,1764066284863,-500.0,6.03e-05,2]
[394884363,1764066285006,-500.0,6.03e-05,2]
[394884364,1764066285041,-500.0,6.03e-05,2]
[394884365,1764066285070,-500.0,6.03e-05,2]
[394884366,1764066285101,-500.0,6.03e-05,2]
[394884367,1764066285130,-500.0,6.03e-05,2]
[394884368,1764066285159,-249.60000001,6.03e-05,2]
[394884369,1764066294353,319.18937709,5.97e-05,2]
[394884370,1764066298193,2976.71900826,6.03e-05,2]
[394884371,1764066298262,1204.90161463,6.03e-05,2]
[394884372,1764066298294,1771.81739363,6.03e-05,2]
[394884373,1764066298357,2976.71900826,6.03e-05,2]
[394884374,1764066298426,2976.71900826,6.03e-05,2]
[394884375,1764066298480,2976.71900826,6.03e-05,2]
[394884376,1764066298544,2976.71900826,6.03e-05,2]
[394884377,1764066298640,1069.85297522,6.03e-05,2]
[394884378,1764066298667,1906.86603304,6.03e-05,2]